[Event "XVI Open Internacional Villa de Ibi"]
[Site "Ibi, Spain"]
[Date "2018.09.09"]
[Round "5.3"]
[White "Diaz Velandia, Jose Manuel"]
[Black "Giaccio, Alfredo"]
[Result "1-0"]
[TimeControl "15' + 2'' por jugada"]
[WhiteElo "2368"]
[BlackElo "2442"]

1. d4 {[%clk 00:15:03]} e6 {[%clk 00:15:02]} {[%emt 00:00:04]} 2. Nf3 {[%clk
00:15:03]} b6 {[%clk 00:15:03]} {[%emt 00:00:04]} 3. e3 {[%clk 00:15:04]} Bb7
{[%clk 00:15:03]} 4. Bd3 {[%clk 00:15:05]} f5 {[%clk 00:15:03]} {[%emt
00:00:04]} 5. O-O {[%clk 00:15:06]} Nf6 {[%clk 00:15:04]} {[%emt 00:00:09]} 6.
Nbd2 {[%clk 00:15:05]} Be7 {[%clk 00:14:05]} {[%emt 00:00:53]} 7. Qe2 {[%clk
00:15:06]} {[%emt 00:00:28]} Ne4 {[%clk 00:14:02]} 8. Ne5 {[%clk 00:15:03]} O-O
{[%clk 00:13:55]} 9. f3 {[%clk 00:14:44]} {[%emt 00:00:13]} Nxd2 {[%clk
00:12:43]} {[%emt 00:01:14]} 10. Bxd2 {[%clk 00:14:44]} {[%emt 00:00:23]} d6
{[%clk 00:12:37]} {[%emt 00:00:05]} 11. Nc4 {[%clk 00:14:45]} c5 {[%clk
00:11:46]} {[%emt 00:00:36]} 12. Be1 {[%clk 00:14:14]} {[%emt 00:00:36]} Nc6
{[%clk 00:11:42]} {[%emt 00:00:04]} 13. c3 {[%clk 00:14:15]} {[%emt 00:00:04]}
b5 {[%clk 00:11:29]} {[%emt 00:00:11]} 14. Nd2 {[%clk 00:14:13]} {[%emt
00:00:08]} a6 {[%clk 00:11:30]} {[%emt 00:00:03]} 15. Bf2 {[%clk 00:14:10]}
{[%emt 00:00:04]} Qc7 {[%clk 00:11:29]} {[%emt 00:00:03]} 16. e4 {[%clk
00:14:03]} {[%emt 00:00:05]} f4 {[%clk 00:10:56]} {[%emt 00:00:34]} 17. a4
{[%clk 00:12:51]} {[%emt 00:01:14]} c4 {[%clk 00:10:53]} {[%emt 00:00:10]} 18.
Bc2 {[%clk 00:12:44]} {[%emt 00:00:07]} e5 {[%clk 00:10:50]} {[%emt 00:00:06]}
19. d5 {[%clk 00:12:41]} {[%emt 00:00:08]} Nb8 {[%clk 00:10:49]} 20. axb5
{[%clk 00:12:22]} {[%emt 00:00:43]} axb5 {[%clk 00:10:50]} 21. Rxa8 {[%clk
00:12:10]} {[%emt 00:00:12]} Bxa8 {[%clk 00:10:51]} 22. Ra1 {[%clk 00:12:10]}
Nd7 {[%clk 00:10:51]} 23. Ra7 {[%clk 00:11:36]} {[%emt 00:00:19]} Bb7 {[%clk
00:10:43]} {[%emt 00:00:21]} 24. b3 {[%clk 00:11:19]} {[%emt 00:00:10]} Nb6
{[%clk 00:08:59]} {[%emt 00:01:44]} 25. bxc4 {[%clk 00:10:59]} {[%emt
00:00:38]} bxc4 {[%clk 00:08:54]} 26. Qf1 {[%clk 00:10:44]} {[%emt 00:00:07]}
Ra8 {[%clk 00:08:06]} {[%emt 00:00:50]} 27. Rxa8+ {[%clk 00:10:34]} {[%emt
00:00:12]} Bxa8 {[%clk 00:08:05]} {[%emt 00:00:27]} 28. Qa1 {[%clk 00:09:54]}
{[%emt 00:00:21]} Bb7 {[%clk 00:07:36]} {[%emt 00:00:29]} 29. Qa2 {[%clk
00:09:01]} {[%emt 00:01:01]} Bd8 {[%clk 00:07:33]} {[%emt 00:00:39]} 30. h3
{[%clk 00:09:01]} Qc8 {[%clk 00:06:54]} {[%emt 00:00:17]} 31. Qa3 {[%clk
00:08:40]} {[%emt 00:00:10]} Qc7 {[%clk 00:06:31]} {[%emt 00:00:26]} 32. Qb4
{[%clk 00:08:36]} {[%emt 00:00:05]} Ba6 {[%clk 00:06:31]} {[%emt 00:00:03]} 33.
Bd1 {[%clk 00:08:29]} {[%emt 00:00:07]} Nc8 {[%clk 00:06:17]} {[%emt 00:00:14]}
34. Qa4 {[%clk 00:08:26]} {[%emt 00:00:08]} h6 {[%clk 00:04:50]} {[%emt
00:01:27]} 35. Qxa6 {[%emt 00:00:09]} Qb8 36. Be2 {[%clk 00:07:53]} {[%emt
00:00:28]} Ne7 {[%clk 00:04:44]} {[%emt 00:00:39]} 37. Nxc4 {[%clk 00:07:46]}
Qb1+ {[%clk 00:04:07]} {[%emt 00:00:19]} 38. Bf1 {[%clk 00:07:45]} {[%emt
00:00:41]} Ng6 {[%clk 00:04:06]} 39. Qxd6 {[%clk 00:07:38]} Bf6 {[%clk
00:04:07]} 40. Qe6+ {[%clk 00:07:31]} {[%emt 00:00:03]} Kh8 {[%clk 00:04:09]}
41. d6 {[%clk 00:06:52]} {[%emt 00:00:35]} Kh7 {[%clk 00:03:55]} {[%emt
00:00:08]} 42. d7 {[%clk 00:06:40]} {[%emt 00:00:10]} Qc2 {[%clk 00:02:12]}
{[%emt 00:01:56]} 43. Qxf6 {[%clk 00:06:33]} 1-0

[Event "XVI Open Internacional Villa de Ibi"]
[Site "Ibi, Spain"]
[Date "2018.09.09"]
[Round "5.4"]
[White "Arias Igual, Alejandro"]
[Black "Camarena Gimenez, Rufino"]
[Result "0-1"]
[TimeControl "15' + 2'' por jugada"]
[WhiteElo "2260"]
[BlackElo "2339"]

1. e4 {[%clk 00:15:02]} {[%emt 00:00:03]} e6 {[%clk 00:15:02]} {[%emt
00:00:11]} 2. d4 {[%clk 00:15:02]} d5 {[%clk 00:15:03]} 3. exd5 {[%clk
00:15:02]} exd5 {[%clk 00:15:03]} 4. Nf3 {[%clk 00:15:02]} Nf6 {[%clk
00:14:46]} {[%emt 00:00:17]} 5. Bd3 {[%clk 00:14:57]} {[%emt 00:00:21]} c5
{[%clk 00:14:43]} 6. dxc5 {[%clk 00:13:43]} {[%emt 00:01:07]} Bxc5 {[%clk
00:14:40]} {[%emt 00:00:29]} 7. O-O {[%clk 00:13:40]} O-O {[%clk 00:14:36]}
{[%emt 00:00:06]} 8. Bg5 {[%clk 00:11:53]} {[%emt 00:01:33]} h6 {[%clk
00:14:29]} {[%emt 00:00:09]} 9. Bh4 {[%clk 00:11:44]} {[%emt 00:00:10]} Nc6
{[%clk 00:14:20]} {[%emt 00:00:12]} 10. Nbd2 {[%clk 00:11:30]} {[%emt
00:00:13]} Be6 {[%clk 00:13:15]} {[%emt 00:01:37]} 11. c3 {[%clk 00:10:47]}
{[%emt 00:00:20]} g5 {[%clk 00:12:19]} {[%emt 00:00:53]} 12. Bg3 {[%clk
00:10:34]} {[%emt 00:00:36]} Nh5 {[%clk 00:12:14]} 13. Nb3 {[%clk 00:10:26]}
{[%emt 00:00:03]} Nxg3 {[%clk 00:12:00]} {[%emt 00:00:09]} 14. hxg3 {[%clk
00:10:12]} {[%emt 00:00:36]} Bb6 {[%clk 00:11:57]} 15. Bc2 {[%clk 00:09:56]}
{[%emt 00:00:06]} Kg7 {[%clk 00:11:11]} {[%emt 00:00:45]} 16. Qd3 {[%clk
00:09:40]} {[%emt 00:00:39]} Rh8 {[%clk 00:11:05]} 17. Nbd4 {[%clk 00:09:29]}
{[%emt 00:00:04]} Qf6 {[%clk 00:10:55]} {[%emt 00:00:07]} 18. Nf5+ {[%clk
00:08:44]} {[%emt 00:01:03]} Bxf5 {[%clk 00:08:23]} {[%emt 00:02:22]} 19. Qxf5
{[%clk 00:08:44]} {[%emt 00:00:03]} Qxf5 {[%clk 00:08:01]} {[%emt 00:00:25]} 20.
Bxf5 {[%clk 00:08:44]} h5 {[%clk 00:07:23]} {[%emt 00:00:44]} 21. Bc2 {[%clk
00:07:15]} {[%emt 00:01:25]} g4 {[%clk 00:06:38]} {[%emt 00:00:48]} 22. Nh4
{[%clk 00:07:15]} {[%emt 00:00:04]} d4 {[%clk 00:06:17]} {[%emt 00:00:19]} 23.
Nf5+ {[%clk 00:06:57]} {[%emt 00:00:23]} Kf6 {[%clk 00:06:15]} {[%emt
00:00:03]} 24. cxd4 {[%clk 00:05:31]} {[%emt 00:01:29]} Nxd4 {[%clk 00:06:02]}
{[%emt 00:00:11]} 25. Nxd4 {[%clk 00:05:31]} {[%emt 00:00:22]} Bxd4 {[%clk
00:06:02]} 26. Rad1 {[%clk 00:05:18]} {[%emt 00:00:07]} Rad8 {[%clk 00:05:58]}
27. Rd3 {[%clk 00:05:12]} {[%emt 00:00:31]} Bxb2 {[%clk 00:04:09]} {[%emt
00:01:35]} 28. Rb1 {[%clk 00:04:28]} {[%emt 00:00:36]} Rxd3 {[%clk 00:04:06]}
{[%emt 00:00:11]} 29. Bxd3 {[%clk 00:04:29]} Bd4 {[%clk 00:04:04]} 30. Rxb7
{[%clk 00:03:38]} {[%emt 00:00:57]} h4 {[%clk 00:04:01]} {[%emt 00:00:04]} 31.
Rb4 {[%clk 00:03:28]} {[%emt 00:00:11]} Ke5 {[%clk 00:03:49]} {[%emt 00:00:14]}
32. Rb5+ {[%clk 00:03:06]} {[%emt 00:00:22]} Kd6 {[%clk 00:03:40]} {[%emt
00:00:12]} 33. Kf1 {[%clk 00:02:49]} {[%emt 00:00:16]} h3 {[%clk 00:02:44]}
{[%emt 00:00:59]} 34. gxh3 {[%clk 00:02:24]} {[%emt 00:00:27]} gxh3 {[%clk
00:02:44]} {[%emt 00:00:19]} 35. Be4 {[%clk 00:01:59]} {[%emt 00:00:13]} Bc5
{[%clk 00:02:39]} {[%emt 00:00:06]} 36. Rb1 {[%clk 00:01:36]} {[%emt 00:00:25]}
Re8 {[%clk 00:02:22]} {[%emt 00:00:17]} 37. Bf5 {[%clk 00:01:22]} {[%emt
00:00:16]} h2 {[%clk 00:02:20]} {[%emt 00:00:34]} 38. Kg2 {[%clk 00:01:09]}
{[%emt 00:00:04]} Re2 {[%clk 00:02:13]} 39. Kxh2 {[%clk 00:00:46]} {[%emt
00:00:17]} Rxf2+ {[%clk 00:02:13]} {[%emt 00:00:06]} 40. Kh3 {[%clk 00:00:44]}
{[%emt 00:00:03]} Rxf5 {[%clk 00:02:13]} 41. Rb2 {[%clk 00:00:35]} {[%emt
00:00:39]} Rf2 {[%clk 00:02:11]} 42. Rb7 {[%clk 00:00:31]} {[%emt 00:00:04]} f5
{[%clk 00:02:01]} 43. a4 {[%clk 00:00:26]} {[%emt 00:00:13]} Ra2 {[%clk
00:01:51]} 44. Rf7 {[%clk 00:00:23]} Ke6 {[%clk 00:01:46]} {[%emt 00:00:07]} 45.
Rc7 {[%clk 00:00:23]} {[%emt 00:00:11]} Bb6 {[%clk 00:01:46]} 46. Rc4 {[%clk
00:00:24]} Ra3 {[%clk 00:01:31]} {[%emt 00:00:10]} 47. Kh4 {[%clk 00:00:18]}
{[%emt 00:00:11]} Bf2 {[%clk 00:01:14]} {[%emt 00:00:15]} 0-1

[Event "XVI Open Internacional Villa de Ibi"]
[Site "Ibi, Spain"]
[Date "2018.09.09"]
[Round "5.5"]
[White "Cruz Lledo, Pablo"]
[Black "Martinez Tormo, Jorge"]
[Result "1-0"]
[TimeControl "15' + 2'' por jugada"]
[WhiteElo "2436"]
[BlackElo "2157"]

1. d4 {[%clk 00:15:00]} {[%emt 00:00:05]} d5 {[%clk 00:15:03]} {[%emt
00:00:03]} 2. g3 {[%clk 00:15:01]} e6 {[%clk 00:15:05]} 3. Bg2 {[%clk
00:14:59]} {[%emt 00:00:07]} f5 {[%clk 00:15:06]} 4. Nh3 {[%clk 00:14:56]}
{[%emt 00:00:03]} Nf6 {[%clk 00:15:05]} {[%emt 00:00:03]} 5. O-O {[%clk
00:14:54]} {[%emt 00:00:30]} Bd6 {[%clk 00:15:06]} 6. Bf4 {[%clk 00:14:52]} O-O
{[%clk 00:15:06]} 7. Nd2 {[%clk 00:14:51]} c6 {[%clk 00:14:33]} {[%emt
00:00:16]} 8. c4 {[%clk 00:14:39]} {[%emt 00:00:30]} b6 {[%clk 00:14:33]} 9. f3
{[%clk 00:14:32]} {[%emt 00:00:14]} Bb7 {[%clk 00:13:55]} {[%emt 00:00:22]} 10.
e4 {[%clk 00:14:30]} {[%emt 00:00:12]} dxe4 {[%clk 00:13:35]} {[%emt 00:00:13]}
11. fxe4 {[%clk 00:13:51]} {[%emt 00:00:41]} Bxf4 {[%clk 00:12:53]} {[%emt
00:00:44]} 12. Nxf4 {[%clk 00:13:51]} {[%emt 00:00:27]} Qxd4+ {[%clk 00:11:46]}
{[%emt 00:00:45]} 13. Kh1 {[%clk 00:13:51]} {[%emt 00:00:03]} Re8 {[%clk
00:11:12]} {[%emt 00:00:33]} 14. exf5 {[%clk 00:12:15]} {[%emt 00:01:39]} exf5
{[%clk 00:11:01]} {[%emt 00:00:13]} 15. Qc2 {[%clk 00:11:58]} {[%emt 00:00:42]}
Ng4 {[%clk 00:10:18]} {[%emt 00:00:42]} 16. Qxf5 {[%clk 00:11:28]} {[%emt
00:00:11]} Ne3 {[%clk 00:09:43]} {[%emt 00:00:41]} 17. Qh5 {[%clk 00:11:24]}
{[%emt 00:00:07]} Nd7 {[%clk 00:09:32]} {[%emt 00:00:09]} 18. Nf3 {[%clk
00:11:18]} {[%emt 00:00:07]} Qxb2 {[%clk 00:09:06]} {[%emt 00:00:28]} 19. Ng5
{[%clk 00:10:51]} {[%emt 00:00:35]} Nf6 {[%clk 00:08:51]} {[%emt 00:00:12]} 20.
Qf7+ {[%clk 00:10:48]} {[%emt 00:00:30]} Kh8 {[%clk 00:08:52]} 21. Qxb7 {[%clk
00:10:08]} {[%emt 00:00:17]} Nxf1 {[%clk 00:05:33]} {[%emt 00:03:24]} 22. Rxf1
{[%clk 00:10:05]} {[%emt 00:00:04]} Rac8 {[%clk 00:04:19]} {[%emt 00:01:14]} 23.
Nf7+ {[%clk 00:09:44]} {[%emt 00:00:24]} Kg8 {[%clk 00:04:20]} 24. Nd6 {[%clk
00:09:39]} {[%emt 00:00:17]} Rcd8 {[%clk 00:03:59]} {[%emt 00:00:17]} 25. Qf7+
{[%clk 00:09:27]} {[%emt 00:00:11]} Kh8 {[%clk 00:04:01]} 26. Nxe8 {[%emt
00:01:18]} 1-0

[Event "XVI Open Internacional Villa de Ibi"]
[Site "Ibi, Spain"]
[Date "2018.09.09"]
[Round "5.6"]
[White "Chernikov, Vladimir"]
[Black "Ibanez Aullana, Ramon"]
[Result "0-1"]
[TimeControl "15' + 2'' por jugada"]
[WhiteElo "2158"]
[BlackElo "2301"]

1. b3 {[%clk 00:15:02]} Nf6 {[%clk 00:15:03]} 2. Bb2 {[%clk 00:15:01]} g6
{[%clk 00:15:05]} 3. Bxf6 {[%clk 00:15:01]} exf6 {[%clk 00:15:05]} 4. c4 {[%clk
00:15:03]} Bg7 {[%clk 00:14:55]} {[%emt 00:00:07]} 5. Nc3 {[%clk 00:15:03]} O-O
{[%clk 00:14:55]} {[%emt 00:00:03]} 6. g3 {[%clk 00:15:05]} f5 {[%clk
00:14:38]} {[%emt 00:00:16]} 7. Rc1 {[%clk 00:15:06]} {[%emt 00:00:24]} Re8
{[%clk 00:14:18]} {[%emt 00:00:10]} 8. Bg2 {[%clk 00:14:53]} {[%emt 00:00:09]}
f4 {[%clk 00:13:45]} {[%emt 00:00:29]} 9. gxf4 {[%clk 00:14:34]} {[%emt
00:00:23]} Qh4 {[%clk 00:13:41]} {[%emt 00:00:07]} 10. Nd5 {[%clk 00:13:57]}
{[%emt 00:01:16]} Na6 {[%clk 00:13:30]} 11. f5 {[%clk 00:12:23]} {[%emt
00:01:09]} Qg5 {[%clk 00:12:46]} {[%emt 00:01:17]} 12. Bh3 {[%clk 00:11:45]}
{[%emt 00:00:12]} d6 {[%clk 00:12:27]} {[%emt 00:00:20]} 13. Nf3 {[%clk
00:07:04]} {[%emt 00:04:44]} Qh5 {[%clk 00:12:07]} {[%emt 00:00:23]} 14. Bg2
{[%clk 00:06:33]} {[%emt 00:00:32]} Bxf5 {[%clk 00:11:44]} {[%emt 00:00:22]} 15.
O-O {[%clk 00:06:04]} {[%emt 00:00:34]} c6 {[%clk 00:11:21]} {[%emt 00:00:23]}
16. Ne3 {[%clk 00:05:46]} {[%emt 00:00:30]} Bh3 {[%clk 00:11:03]} {[%emt
00:00:11]} 17. d4 {[%clk 00:05:26]} {[%emt 00:00:20]} Bh6 {[%clk 00:10:25]}
{[%emt 00:00:42]} 18. Rc3 {[%clk 00:05:27]} {[%emt 00:00:04]} Re4 {[%clk
00:09:42]} {[%emt 00:00:40]} 19. Qd3 {[%clk 00:04:30]} {[%emt 00:01:02]} Rae8
{[%clk 00:09:27]} {[%emt 00:00:23]} 20. Ne5 {[%clk 00:03:43]} {[%emt 00:00:41]}
Rxe3 {[%clk 00:08:14]} {[%emt 00:01:14]} 21. fxe3 {[%clk 00:03:33]} {[%emt
00:00:41]} dxe5 {[%clk 00:08:04]} 22. dxe5 {[%clk 00:03:07]} {[%emt 00:00:10]}
Nc5 {[%clk 00:06:15]} {[%emt 00:01:51]} 23. Qd4 {[%clk 00:03:08]} Qg5 {[%clk
00:06:02]} {[%emt 00:00:16]} 24. Rf2 {[%clk 00:03:03]} {[%emt 00:00:34]} Rd8
{[%clk 00:06:00]} {[%emt 00:00:03]} 25. Kh1 {[%clk 00:01:43]} {[%emt 00:00:57]}
Rxd4 {[%clk 00:05:08]} {[%emt 00:00:54]} 26. exd4 {[%clk 00:01:44]} {[%emt
00:00:16]} Bxg2+ {[%clk 00:05:02]} 27. Rxg2 {[%clk 00:01:44]} Qd2 {[%clk
00:04:56]} {[%emt 00:00:16]} 0-1

[Event "XVI Open Internacional Villa de Ibi"]
[Site "Ibi, Spain"]
[Date "2018.09.09"]
[Round "5.7"]
[White "Garcia Amoros, Pablo"]
[Black "Cano Gimenez, Vicente"]
[Result "1-0"]
[TimeControl "15' + 2'' por jugada"]
[WhiteElo "2097"]
[BlackElo "2288"]

1. e4 {[%clk 00:15:02]} {[%emt 00:00:06]} c5 {[%clk 00:15:02]} {[%emt
00:00:09]} 2. Nf3 {[%clk 00:15:01]} g6 {[%clk 00:15:00]} 3. d4 {[%clk
00:14:58]} {[%emt 00:00:04]} cxd4 {[%clk 00:15:00]} {[%emt 00:00:04]} 4. Nxd4
{[%clk 00:14:58]} {[%emt 00:00:04]} Nc6 {[%clk 00:15:00]} 5. c4 {[%clk
00:14:56]} {[%emt 00:00:03]} Nf6 {[%clk 00:15:00]} 6. Nc3 {[%clk 00:14:53]}
{[%emt 00:00:10]} d6 {[%clk 00:15:00]} 7. Be2 {[%clk 00:14:26]} {[%emt
00:00:24]} Nxd4 {[%clk 00:14:59]} {[%emt 00:00:18]} 8. Qxd4 {[%clk 00:14:25]}
Bg7 {[%clk 00:14:59]} 9. Be3 {[%clk 00:14:08]} {[%emt 00:00:13]} O-O {[%clk
00:14:57]} 10. Qd1 {[%clk 00:13:33]} {[%emt 00:00:39]} Qa5 {[%clk 00:14:39]}
{[%emt 00:00:18]} 11. O-O {[%clk 00:13:29]} {[%emt 00:00:28]} Be6 {[%clk
00:14:39]} 12. Rc1 {[%clk 00:13:06]} {[%emt 00:00:06]} Rfc8 {[%clk 00:14:38]}
{[%emt 00:00:09]} 13. b3 {[%clk 00:12:39]} {[%emt 00:00:22]} b5 {[%clk
00:12:16]} {[%emt 00:02:24]} 14. Nxb5 {[%clk 00:12:19]} {[%emt 00:00:46]} Nxe4
{[%clk 00:11:21]} {[%emt 00:00:34]} 15. Bf3 {[%clk 00:12:08]} {[%emt 00:00:12]}
f5 {[%clk 00:11:16]} {[%emt 00:00:22]} 16. Bd4 {[%clk 00:11:23]} {[%emt
00:00:57]} a6 {[%clk 00:10:39]} {[%emt 00:00:25]} 17. Bxe4 {[%clk 00:10:19]}
{[%emt 00:01:06]} fxe4 {[%clk 00:10:25]} {[%emt 00:00:05]} 18. Nc3 {[%clk
00:10:17]} {[%emt 00:00:36]} Bh6 {[%clk 00:09:07]} {[%emt 00:00:57]} 19. Rc2
{[%clk 00:10:11]} e3 {[%clk 00:08:21]} {[%emt 00:00:48]} 20. Bxe3 {[%clk
00:09:20]} {[%emt 00:00:54]} Bxe3 {[%clk 00:08:20]} {[%emt 00:00:04]} 21. fxe3
{[%clk 00:09:21]} {[%emt 00:00:04]} Rc5 {[%clk 00:07:06]} {[%emt 00:01:10]} 22.
e4 {[%clk 00:09:06]} {[%emt 00:00:35]} Re5 {[%clk 00:06:32]} {[%emt 00:00:24]}
23. Nd5 {[%clk 00:08:09]} {[%emt 00:01:04]} Bxd5 {[%clk 00:05:30]} {[%emt
00:00:59]} 24. exd5 {[%clk 00:08:07]} {[%emt 00:00:09]} Qc5+ {[%clk 00:05:27]}
{[%emt 00:00:03]} 25. Kh1 {[%clk 00:08:07]} Qe3 {[%clk 00:04:59]} {[%emt
00:00:24]} 26. Rcf2 {[%clk 00:07:53]} {[%emt 00:00:25]} a5 {[%clk 00:04:45]}
{[%emt 00:00:14]} 27. h3 {[%clk 00:07:50]} Rb8 {[%clk 00:04:06]} {[%emt
00:00:39]} 28. Qg4 {[%clk 00:07:32]} {[%emt 00:00:20]} Rd8 {[%clk 00:03:31]}
{[%emt 00:00:41]} 29. Rf7 {[%clk 00:07:28]} {[%emt 00:00:03]} Qe4 {[%clk
00:03:11]} {[%emt 00:00:20]} 30. R7f4 {[%clk 00:05:38]} {[%emt 00:01:53]} Qe2
{[%clk 00:02:21]} {[%emt 00:00:52]} 31. Qxe2 {[%clk 00:04:59]} {[%emt
00:00:41]} Rxe2 {[%clk 00:02:21]} {[%emt 00:00:13]} 32. R4f2 {[%clk 00:05:00]}
Re4 {[%clk 00:02:22]} 33. Rc2 {[%clk 00:04:55]} {[%emt 00:00:14]} Rb8 {[%clk
00:02:16]} 34. Kg1 {[%clk 00:04:53]} a4 {[%clk 00:02:16]} 35. Rf3 {[%clk
00:04:54]} Re1+ {[%clk 00:01:52]} {[%emt 00:00:27]} 36. Rf1 {[%clk 00:04:51]}
{[%emt 00:00:04]} Rxf1+ {[%clk 00:01:51]} {[%emt 00:00:04]} 37. Kxf1 {[%clk
00:04:51]} {[%emt 00:00:03]} axb3 {[%clk 00:01:50]} {[%emt 00:00:04]} 38. Rb2
{[%clk 00:04:47]} {[%emt 00:00:05]} Rb4 {[%clk 00:01:43]} {[%emt 00:00:21]} 39.
axb3 {[%clk 00:04:47]} {[%emt 00:00:09]} Kf7 {[%clk 00:01:44]} 40. Ke2 {[%clk
00:04:47]} e6 {[%clk 00:01:45]} 41. dxe6+ {[%clk 00:04:43]} Kxe6 {[%clk
00:01:45]} 42. Kd3 {[%clk 00:04:45]} d5 {[%clk 00:01:46]} {[%emt 00:00:22]} 43.
Kc3 {[%clk 00:04:42]} Rb8 {[%clk 00:01:30]} {[%emt 00:00:04]} 44. b4 {[%clk
00:04:33]} {[%emt 00:00:05]} dxc4 {[%clk 00:01:30]} 45. Kxc4 {[%clk 00:04:34]}
{[%emt 00:00:11]} Kd6 {[%clk 00:01:31]} 46. b5 {[%clk 00:04:29]} Rf8 {[%clk
00:00:27]} {[%emt 00:01:00]} 47. Rd2+ {[%clk 00:04:12]} {[%emt 00:00:36]} Kc7
{[%clk 00:00:26]} 48. Kc5 {[%clk 00:04:13]} Rf5+ {[%clk 00:00:22]} 49. Rd5
{[%clk 00:03:54]} {[%emt 00:00:21]} Rf2 {[%clk 00:00:23]} 50. b6+ {[%clk
00:03:55]} Kc8 {[%clk 00:00:24]} 51. g4 {[%clk 00:03:32]} {[%emt 00:00:21]} Rf3
{[%clk 00:00:23]} {[%emt 00:00:40]} 52. h4 {[%clk 00:02:45]} {[%emt 00:00:51]}
Rg3 {[%clk 00:00:19]} 53. Rd4 {[%clk 00:02:43]} Rh3 {[%clk 00:00:16]} 54. g5
{[%clk 00:02:42]} Rh1 {[%clk 00:00:15]} 55. Rc4 {[%clk 00:02:33]} {[%emt
00:00:03]} Rd1 {[%clk 00:00:14]} 56. Kc6 {[%clk 00:02:31]} Rd2 {[%clk
00:00:12]} {[%emt 00:00:04]} 57. Rf4 {[%clk 00:01:49]} {[%emt 00:00:40]} Rc2+
{[%clk 00:00:13]} {[%emt 00:00:11]} 58. Kd6 {[%clk 00:01:49]} Rb2 {[%clk
00:00:11]} 59. Rf8+ {[%clk 00:01:48]} Kb7 {[%clk 00:00:12]} 60. Rf7+ {[%clk
00:01:49]} {[%emt 00:00:11]} Kxb6 {[%clk 00:00:13]} 61. Rxh7 {[%clk 00:01:49]}
Re2 {[%clk 00:00:09]} {[%emt 00:00:25]} 62. Rh6 {[%clk 00:01:39]} Re4 {[%clk
00:00:09]} 63. h5 {[%clk 00:01:34]} gxh5 {[%clk 00:00:10]} {[%emt 00:00:04]} 64.
Rxh5 {[%clk 00:01:30]} {[%emt 00:00:03]} Rg4 {[%clk 00:00:03]} {[%emt
00:00:17]} 65. Ke6 {[%clk 00:01:29]} Kc7 {[%clk 00:00:05]} 66. Kf5 {[%clk
00:00:45]} {[%emt 00:00:59]} Rg1 {[%clk 00:00:06]} 67. g6 {[%clk 00:00:46]} Kd7
{[%clk 00:00:06]} 68. Rg5 {[%clk 00:00:42]} Rf1+ {[%clk 00:00:07]} 69. Ke5
{[%clk 00:00:36]} {[%emt 00:00:12]} Rf8 {[%clk 00:00:07]} 70. g7 {[%clk
00:00:36]} Rg8 {[%clk 00:00:06]} 71. Kf6 {[%clk 00:00:37]} 1-0